[Event "WSTCC-50 2024"]
[Site "Krakow"]
[Date "2024.07.03"]
[Round "2.15"]
[White "Ortega, Lexy"]
[Black "Harstad, Christian"]
[Result "1-0"]
[ECO "B30"]
[WhiteElo "2386"]
[BlackElo "1917"]
[Annotator "TA"]
[PlyCount "73"]
[EventDate "2024.07.01"]
[EventType "team-tourn"]
[EventCountry "POL"]
[SourceTitle "playchess.com"]
[Source "ChessBase"]
[SourceQuality "1"]
[TimeControl "40/5400+30:1800+30"]

{[%evp 22,72,24,20,39,40,42,16,81,61,95,66,76,93,139,137,147,143,136,129,130,131,262,122,231,83,96,86,102,55,62,51,65,29,118,108,115,72,112,-6,132,43,47,0,0,-331,-274,-242,335,328,310,287,29999]} 1. Nf3 {[%emt 0:00:06]} c5 {[%emt 0:00:07]} 2. e4 {[%emt 0:00:37]} Nc6 {[%emt 0:00:24]} 3. Bb5 {[%emt 0:00:06]} d6 {[%emt 0:00:16]} 4. d4 {[%emt 0:00:28]} cxd4 {[%emt 0:00:38]} 5. Qxd4 {[%emt 0:00:03]} Bd7 {[%emt 0:00:55]} 6. Bxc6 {[%emt 0:01:00]} Bxc6 {[%emt 0:01:06]} 7. Nc3 {[%emt 0:00:20]} Nf6 {[%emt 0:01:25]} 8. Bg5 {[%emt 0:00:05]} e6 {[%emt 0:01:40]} 9. O-O-O {[%emt 0:00:22]} Be7 {[%emt 0:00:50]} 10. Qd3 {[%emt 0:00:27]} O-O {[%emt 0:04:41]} 11. Nd4 {[%emt 0:00:54]} Qa5 {[%emt 0:06:03]} 12. f4 {[%emt 0:00:33]} h6 {[%emt 0:09:18] [#]} 13. h4 {[%emt 0:00:26][%cal Od3g3]} Rfe8 {[%emt 0:06:47]} (13... hxg5 $2 14. hxg5 Ng4 15. e5 $18 (15. Qh3 Nh6 $18)) (13... Rac8 14. g4) 14. Kb1 {[%emt 0:00:52][%cal Od3f3]} d5 {[%emt 0:09:30]} (14... hxg5 $2 15. hxg5 g6 16. Qh3 $18 (16. gxf6 Bxf6 17. Qf1 Rad8 $11)) (14... Rac8 $11) 15. e5 $16 {[%emt 0:28:42]} Ne4 {[%emt 0:02:11]} 16. Nxe4 {[%emt 0:35:20]} dxe4 {[%emt 0:00:38]} 17. Qg3 {[%emt 0:01:06] White is more active.} Kh7 {[%emt 0:06:32]} (17... hxg5 $2 18. hxg5 Bxg5 19. fxg5 $18 (19. Qxg5 Rad8 $18)) ({Black should play} 17... Bd5 18. b3 Bf8 (18... hxg5 $2 19. hxg5 Bb4 20. f5 $18)) 18. Nxc6 {[%emt 0:04:49]} bxc6 {[%emt 0:01:40]} 19. Bxe7 {[%emt 0:00:13]} Rxe7 {[%emt 0:00:34]} 20. Qe3 {[%emt 0:00:12]} Rb8 {[%emt 0:04:49]} 21. Qxe4+ {[%emt 0:00:10]} g6 {[%emt 0:00:08]} (21... Kg8 $16) 22. Rd3 {[%emt 0:06:10]} (22. Qxc6 Reb7 23. b3 Rc7 $14) (22. h5 $6 Qb4 23. Qxb4 (23. Qxc6 $2 Qxb2#) 23... Rxb4 $16) (22. b3 $1 $18) 22... Reb7 {[%emt 0:05:24]} (22... Rb4 $16 23. Qe1 (23. Qxc6 Rxf4 24. Qd6 Rb7 $11) 23... Reb7) 23. Rb3 {[%emt 0:00:24]} (23. Qxc6 $2 Rxb2+ 24. Kc1 Rb1#) (23. b3 $1 $18 {is the precise move to win.} Rb4 24. Qe1 (24. Qxc6 Rxf4 25. Qc3 Qxc3 $16)) 23... Rxb3 {[%emt 0:01:27]} 24. axb3 {[%emt 0:03:59][%cal Oh4h5][%mdl 4096] Endgame. Hoping for h5! KQR-KQR} Rb4 {[%emt 0:01:45]} 25. Qe1 {[%emt 0:04:06]} (25. Qxc6 Rxf4 26. g3 Rf5 $11) (25. Qe3 $16 {And now h5 would win.} h5 26. Rd1) 25... Qc5 $14 {[%emt 0:03:06]} 26. Rf1 {[%emt 0:04:17][%cal Oh4h5]} Rd4 {[%emt 0:02:44]} 27. h5 {[%emt 0:00:58]} Qd5 {[%emt 0:01:31]} (27... gxh5 $11 {remains equal.} 28. c3 Rd8) 28. hxg6+ $16 {[%emt 0:00:17]} fxg6 {[%emt 0:03:46]} 29. g3 {[%emt 0:00:14]} Rd2 {[%emt 0:11:06]} 30. Kc1 {[%emt 0:02:20]} (30. Qe3 $16) 30... Rd4 {[%emt 0:02:30]} (30... Qg2 $1 $11 31. Qxd2 Qxf1+ 32. Qd1 Qxd1+ 33. Kxd1 h5) 31. Rf2 {[%emt 0:01:17]} ({Better is} 31. Qe2 $16) 31... h5 $14 {[%emt 0:02:44]} 32. c3 {[%emt 0:04:20]} (32. Re2 $14) 32... Rd3 $11 {[%emt 0:03:06]} 33. Rd2 $2 {[%emt 0:00:28][%mdl 8192] [#]} (33. Qg1 $11 {and White is okay.}) 33... Rxd2 $1 $19 {[%emt 0:00:37]} 34. Qxd2 {[%emt 0:00:03]} Qxb3 {[%emt 0:02:49][%mdl 8192] [#]} (34... Qxd2+ $19 35. Kxd2 g5) 35. Qd7+ $1 $18 {[%emt 0:00:16]} Kh6 {[%emt 0:00:07]} 36. Qd8 {[%emt 0:00:55][%cal Rd8h8]} (36. Qxc6 Qa2 37. f5 h4 $11) ({Not} 36. Qxa7 Qd5 $16) 36... Qc4 $2 {[%emt 0:03:07]} (36... Kh7 $18 37. Qe7+ Kg8) 37. Qh8# {[%emt 0:00:12] What a bad dream for Black.   Weighted Error Value: White=0.50/Black=0.74.  Loses game:     	White=1     	---        Missed win:     	---       	Black=1      Mistake:       	White=6     	Black=7      Inaccurate:     	White=3     	Black=2      OK:         	White=7     	Black=6      Best:        	White=3     	Black=2      Strong:       	White=1     	Black=1} 1-0

[Event "WSTCC-50 2024"]
[Site "Krakow"]
[Date "2024.07.03"]
[Round "2.15"]
[White "Fomina, Tatyana"]
[Black "Kohnen, Marc"]
[Result "1-0"]
[ECO "C00"]
[WhiteElo "2192"]
[BlackElo "1837"]
[Annotator "RC"]
[PlyCount "59"]
[EventDate "2024.07.01"]
[EventType "team-tourn"]
[EventCountry "POL"]
[SourceTitle "playchess.com"]
[Source "ChessBase"]
[SourceQuality "1"]
[TimeControl "40/5400+30:1800+30"]

1. e4 {[%emt 0:00:07]} e6 {[%emt 0:00:10]} 2. Qe2 {[%emt 0:00:41]} c5 {[%emt 0:01:25]} 3. Nf3 {[%emt 0:01:53]} Nc6 {[%emt 0:00:42]} 4. c3 {[%emt 0:02:09]} d5 {[%emt 0:02:50]} 5. d3 {[%emt 0:01:14]} Be7 {[%emt 0:01:49]} 6. g3 {[%emt 0:02:02]} d4 {[%emt 0:03:35]} 7. e5 {[%emt 0:03:28]} f6 {[%emt 0:09:42]} 8. exf6 {[%emt 0:06:53]} Bxf6 {[%emt 0:01:48]} 9. Bg2 {[%emt 0:02:32]} Nge7 {[%emt 0:04:00]} 10. Ng5 {[%emt 0:05:02]} e5 {[%emt 0:02:37]} 11. Ne4 {[%emt 0:02:50]} O-O {[%emt 0:07:55]} 12. Nxc5 {[%emt 0:02:54]} dxc3 {[%emt 0:02:36]} 13. bxc3 {[%emt 0:05:01]} Rb8 {[%emt 0:04:32]} 14. O-O {[%emt 0:03:21]} b6 {[%emt 0:05:36]} 15. Ne4 {[%emt 0:01:11]} Ba6 {[%emt 0:00:33]} 16. Rd1 {[%emt 0:01:32]} Rc8 {[%emt 0:06:11]} 17. Na3 {[%emt 0:06:20]} Nd5 {[%emt 0:04:28]} 18. Bb2 {[%emt 0:05:05]} Be7 {[%emt 0:02:52]} 19. Nc2 {[%emt 0:01:08]} Nf6 {[%emt 0:01:04]} 20. Ne3 {[%emt 0:03:35]} Nxe4 {[%emt 0:02:23]} 21. Bxe4 {[%emt 0:00:22]} Bc5 {[%emt 0:00:29]} 22. a4 {[%emt 0:06:05]} Qf6 {[%emt 0:02:23]} 23. Ba3 {[%emt 0:01:31]} Bxa3 {[%emt 0:02:18]} 24. Rxa3 {[%emt 0:00:24]} Rf7 {[%emt 0:01:47]} 25. Bd5 {[%emt 0:04:43]} Rcf8 {[%emt 0:02:01]} 26. Raa1 {[%emt 0:07:07]} e4 {[%emt 0:02:24]} 27. Ng4 {[%emt 0:00:57]} Qxc3 {[%emt 0:01:13]} 28. Qxe4 {[%emt 0:01:20]} Bb7 {[%emt 0:03:02]} 29. Rac1 {[%emt 0:02:03]} Qd4 {[%emt 0:02:17]} 30. Bxc6 {[%emt 0:02:10]} 1-0

[Event "WSTCC-50 2024"]
[Site "Krakow"]
[Date "2024.07.03"]
[Round "2.15"]
[White "Hughes, Anthony"]
[Black "Linik, Yaron"]
[Result "0-1"]
[ECO "A10"]
[WhiteElo "1913"]
[BlackElo "1910"]
[Annotator "NA RC"]
[PlyCount "112"]
[EventDate "2024.07.01"]
[EventType "team-tourn"]
[EventCountry "POL"]
[SourceTitle "playchess.com"]
[Source "ChessBase"]
[SourceQuality "1"]
[TimeControl "40/5400+30:1800+30"]

1. c4 {[%emt 0:00:03]} g6 {[%emt 0:00:14]} 2. Nc3 {[%emt 0:00:06]} Bg7 {[%emt 0:00:24]} 3. g3 {[%emt 0:00:11]} d6 {[%emt 0:00:35]} 4. Bg2 {[%emt 0:00:13]} e5 {[%emt 0:00:47]} 5. e4 {[%emt 0:00:21]} Nc6 {[%emt 0:01:07]} 6. Nge2 {[%emt 0:03:09]} Nge7 {[%emt 0:01:47]} 7. d3 {[%emt 0:00:29]} O-O {[%emt 0:01:07]} 8. O-O {[%emt 0:00:24]} f5 {[%emt 0:02:53]} 9. Be3 {[%emt 0:03:09]} Nd4 {[%emt 0:05:21]} 10. Qd2 {[%emt 0:02:37]} f4 {[%emt 0:12:26]} 11. gxf4 {[%emt 0:03:34]} Bh3 {[%emt 0:01:53]} 12. f3 {[%emt 0:11:42]} Bxg2 {[%emt 0:08:13]} 13. Kxg2 {[%emt 0:41:50]} Nec6 14. Nd5 {[%emt 0:00:05]} Nxe2 {[%emt 0:16:30]} 15. Qxe2 {[%emt 0:00:30]} Nd4 {[%emt 0:00:53]} 16. Qf2 {[%emt 0:02:15]} c6 {[%emt 0:04:08]} 17. Nc3 Ne6 18. f5 {[%emt 0:06:55]} gxf5 {[%emt 0:01:51]} 19. exf5 {[%emt 0:01:41]} Rxf5 {[%emt 0:02:27]} 20. Kh1 {[%emt 0:02:14]} d5 {[%emt 0:01:53]} 21. cxd5 {[%emt 0:05:29]} cxd5 {[%emt 0:00:25]} 22. Bxa7 {[%emt 0:00:51]} d4 {[%emt 0:01:16]} 23. Nb5 {[%emt 0:05:44]} Qd5 {[%emt 0:00:56]} 24. a4 {[%emt 0:02:20]} Raf8 {[%emt 0:00:44]} 25. Qe2 {[%emt 0:03:33]} Ng5 {[%emt 0:02:25]} 26. b4 {[%emt 0:01:03]} Nxf3 {[%emt 0:03:15]} 27. Qa2 {[%emt 0:00:50]} Qxa2 {[%emt 0:04:59]} 28. Rxa2 {[%emt 0:00:04]} Nh4 {[%emt 0:00:47]} 29. Rxf5 {[%emt 0:00:14]} Rxf5 {[%emt 0:00:06]} 30. h3 {[%emt 0:01:15]} Rf1+ {[%emt 0:00:19]} 31. Kh2 {[%emt 0:00:07]} e4 {[%emt 0:00:50]} 32. Bxd4 {[%emt 0:00:28]} exd3 {[%emt 0:01:23]} 33. Kg3 {[%emt 0:01:31]} Nf5+ {[%emt 0:00:53]} 34. Kg2 {[%emt 0:00:12]} Rc1 {[%emt 0:00:51]} 35. Bxg7 {[%emt 0:00:49]} Kxg7 {[%emt 0:00:10]} 36. Kf3 {[%emt 0:00:53]} Rc2 {[%emt 0:00:37]} 37. Ra3 {[%emt 0:01:21]} d2 {[%emt 0:01:49]} 38. Rd3 {[%emt 0:00:06]} Rb2 {[%emt 0:00:39]} 39. Ke2 {[%emt 0:00:37]} Rxb4 {[%emt 0:00:50]} 40. Rxd2 {[%emt 0:00:17]} Rxa4 {[%emt 0:00:44]} 41. Rd7+ {[%emt 0:31:14]} Kg6 {[%emt 0:30:35]} 42. Rxb7 {[%emt 0:00:00]} Rh4 {[%emt 0:00:00]} 43. Nc7 {[%emt 0:00:00]} Rxh3 {[%emt 0:00:00]} 44. Kf2 {[%emt 0:00:00]} Ra3 {[%emt 0:00:00]} 45. Ne6 {[%emt 0:00:00]} h5 {[%emt 0:00:00]} 46. Rb8 {[%emt 0:00:00]} h4 {[%emt 0:00:00]} 47. Rh8 {[%emt 0:00:00]} Nh6 {[%emt 0:00:00]} 48. Rb8 {[%emt 0:00:00]} Ng4+ {[%emt 0:00:00]} 49. Kg2 {[%emt 0:00:00]} h3+ {[%emt 0:00:00]} 50. Kf1 {[%emt 0:00:00]} Ra1+ {[%emt 0:00:00]} 51. Ke2 {[%emt 0:00:00]} h2 {[%emt 0:00:00]} 52. Nf4+ {[%emt 0:00:00]} Kf5 {[%emt 0:00:00]} 53. Rf8+ {[%emt 0:00:20]} Nf6 {[%emt 0:00:00]} 54. Nh5 {[%emt 0:00:35]} Ra2+ {[%emt 0:00:00]} 55. Ke3 {[%emt 0:00:43]} Ra3+ {[%emt 0:00:00]} 56. Kf2 {[%emt 0:01:29]} h1=Q {[%emt 0:00:00]} 0-1

[Event "WSTCC-50 2024"]
[Site "Krakow"]
[Date "2024.07.03"]
[Round "2.16"]
[White "Johnsen, Sylvia"]
[Black "D'Amore, Carlo"]
[Result "0-1"]
[ECO "A25"]
[WhiteElo "1878"]
[BlackElo "2357"]
[Annotator "TA"]
[PlyCount "56"]
[EventDate "2024.07.01"]
[EventType "team-tourn"]
[EventCountry "POL"]
[SourceTitle "playchess.com"]
[Source "ChessBase"]
[SourceQuality "1"]
[TimeControl "40/5400+30:1800+30"]

{[%evp 11,56,5,14,0,-2,3,13,0,0,0,0,0,0,0,0,0,-9,-191,-185,-186,-122,-185,-180,-281,-271,-279,-268,-454,-464,-454,-456,-361,-161,-670,-631,-917,-903,-967,-963,-951,-950,-1405,-1077,-2399,-2330,-2135,-2099]} 1. c4 {[%emt 0:00:03]} e5 {[%emt 0:02:13]} 2. Nc3 {[%emt 0:00:09]} Nc6 {[%emt 0:02:38]} 3. g3 {[%emt 0:00:36]} g6 {[%emt 0:01:15]} 4. Bg2 {[%emt 0:00:53]} Bg7 {[%emt 0:00:05]} 5. Rb1 {[%emt 0:01:43]} a5 {[%emt 0:02:11]} 6. a3 {[%emt 0:00:19]} Nge7 {[%emt 0:00:50]} 7. b4 {[%emt 0:01:02]} axb4 {[%emt 0:00:05]} 8. axb4 {[%emt 0:00:03]} O-O {[%emt 0:00:20]} 9. b5 {[%emt 0:04:22] The position is equal.} Nd4 {[%emt 0:08:20]} 10. e3 {[%emt 0:00:16]} Ne6 {[%emt 0:00:06]} 11. Nge2 {[%emt 0:00:38]} c6 {[%emt 0:00:38]} 12. d4 {[%emt 0:05:18]} exd4 {[%emt 0:01:27]} 13. exd4 {[%emt 0:00:10]} d5 {[%emt 0:00:14]} 14. c5 {[%emt 0:06:32]} (14. cxd5 $11 {and White stays safe.} cxd5 15. O-O) 14... Nf5 $19 {[%emt 0:01:55]} 15. Be3 {[%emt 0:00:55]} Qf6 {[%emt 0:24:56]} (15... Qe7 $19 16. O-O Nxe3 17. fxe3 Nxc5) 16. Rb4 {[%emt 0:15:20] [#]} (16. O-O $17) 16... Qe7 $1 {[%emt 0:00:09] Threatens to win with ...Nxe3.} 17. Qd3 {[%emt 0:13:57]} (17. O-O {was called for.}) 17... Ra1+ {[%emt 0:06:31]} 18. Kd2 {[%emt 0:08:17]} Ra3 {[%emt 0:00:06] ...Nxe3 would now be deadly.} 19. bxc6 $2 {[%emt 0:03:39]} (19. Ra4 {is a better defense.} Nxe3 20. Qxe3 Rxa4 21. Nxa4) 19... bxc6 {[%emt 0:00:31]} 20. Ra4 {[%emt 0:00:23]} Rxa4 {[%emt 0:02:05]} ({Weaker is} 20... Nxe3 21. fxe3 Nxc5 22. dxc5 $19) 21. Nxa4 {[%emt 0:00:10]} Qf6 {[%emt 0:01:32]} ({Don't play} 21... Qa7 22. Ra1 $19) (21... Nxe3 $142 22. fxe3 Nc7) 22. Kc3 $2 {[%emt 0:02:38] [#]} (22. Nb6) 22... Nc7 {[%emt 0:00:08] White must now prevent ...Ba6. Black is clearly winning.} 23. Rd1 {[%emt 0:09:20]} Ba6 {[%emt 0:02:26]} 24. Qd2 {[%emt 0:01:44]} Bxe2 {[%emt 0:01:49]} 25. Qxe2 {[%emt 0:00:13]} Nb5+ {[%emt 0:00:06]} 26. Kb4 {[%emt 0:02:48]} Nbxd4 {[%emt 0:01:11] A dynamic duo of knights.} 27. Qb2 {[%emt 0:02:09]} Rb8+ {[%emt 0:00:48]} 28. Nb6 {[%emt 0:00:15]} Qe7 {[%emt 0:01:15][%csl LRb6,LRe3] Weighted Error Value: White=1.52/Black=0.38.  Loses game:     	White=1     	---        Mistake:       	White=4     	Black=2      Inaccurate:     	White=1     	---        OK:         	White=6     	Black=9      Best:        	---       	Black=2} 0-1

[Event "WSTCC-50 2024"]
[Site "Krakow"]
[Date "2024.07.03"]
[Round "2.16"]
[White "Bulkovstein, David"]
[Black "Thomas, Gary"]
[Result "1/2-1/2"]
[ECO "D02"]
[WhiteElo "1842"]
[BlackElo "1865"]
[Annotator "NA RC"]
[PlyCount "37"]
[EventDate "2024.07.01"]
[EventType "team-tourn"]
[EventCountry "POL"]
[SourceTitle "playchess.com"]
[Source "ChessBase"]
[SourceQuality "1"]
[TimeControl "40/5400+30:1800+30"]

1. Nf3 {[%emt 0:00:03]} d5 {[%emt 0:00:21]} 2. d4 {[%emt 0:00:06]} c5 {[%emt 0:00:30]} 3. e3 {[%emt 0:00:21]} Bf5 {[%emt 0:04:29]} 4. Bd3 {[%emt 0:04:01]} Bxd3 {[%emt 0:00:24]} 5. Qxd3 {[%emt 0:00:14]} Nc6 {[%emt 0:02:35]} 6. c3 {[%emt 0:00:30]} e6 {[%emt 0:03:27]} 7. Nbd2 {[%emt 0:01:41]} Nf6 {[%emt 0:00:22]} 8. O-O {[%emt 0:00:27]} Be7 {[%emt 0:03:23]} 9. Ne5 {[%emt 0:06:49]} cxd4 {[%emt 0:07:35]} 10. exd4 {[%emt 0:01:39]} Nxe5 {[%emt 0:03:13]} 11. dxe5 {[%emt 0:00:08]} Nd7 {[%emt 0:00:07]} 12. Qe2 {[%emt 0:13:51]} Qc7 {[%emt 0:03:32]} 13. Re1 {[%emt 0:00:36]} Rc8 {[%emt 0:08:11]} 14. Nb3 {[%emt 0:10:34]} Qc4 {[%emt 0:11:22]} 15. Bd2 {[%emt 0:05:40]} Qxe2 {[%emt 0:04:40]} 16. Rxe2 {[%emt 0:00:02]} Nc5 {[%emt 0:00:40]} 17. Nxc5 {[%emt 0:02:17]} Bxc5 {[%emt 0:00:13]} 18. Be3 {[%emt 0:00:43]} Kd7 {[%emt 0:04:33]} 19. Rd1 {[%emt 0:03:42]} 1/2-1/2

[Event "WSTCC-50 2024"]
[Site "Krakow"]
[Date "2024.07.03"]
[Round "2.16"]
[White "Kayser, Pierrot"]
[Black "Korge, Kersti"]
[Result "0-1"]
[ECO "A56"]
[WhiteElo "1764"]
[BlackElo "1859"]
[Annotator "NA RC"]
[PlyCount "73"]
[EventDate "2024.07.01"]
[EventType "team-tourn"]
[EventCountry "POL"]
[SourceTitle "playchess.com"]
[Source "ChessBase"]
[SourceQuality "1"]
[TimeControl "40/5400+30:1800+30"]

1. d4 {[%emt 0:00:06]} Nf6 {[%emt 0:00:08]} 2. c4 {[%emt 0:00:21]} c5 {[%emt 0:00:06]} 3. Nf3 {[%emt 0:00:44]} cxd4 {[%emt 0:00:21]} 4. Nxd4 {[%emt 0:00:17]} Nc6 {[%emt 0:00:07]} 5. Nc3 {[%emt 0:00:27]} g6 {[%emt 0:00:24]} 6. e3 {[%emt 0:01:51]} Bg7 {[%emt 0:00:20]} 7. Nxc6 {[%emt 0:03:33]} bxc6 {[%emt 0:00:12]} 8. Be2 {[%emt 0:02:11]} O-O {[%emt 0:00:35]} 9. O-O {[%emt 0:01:13]} d6 {[%emt 0:00:41]} 10. Bf3 {[%emt 0:02:25]} Qc7 {[%emt 0:01:02]} 11. Nb5 {[%emt 0:01:41]} Qb6 {[%emt 0:03:33]} 12. Qd4 {[%emt 0:03:45]} c5 {[%emt 0:02:23]} 13. Qd1 {[%emt 0:03:36]} Rb8 {[%emt 0:03:01]} 14. Rb1 {[%emt 0:05:08]} Bf5 {[%emt 0:01:00]} 15. Ra1 {[%emt 0:01:23]} Be6 {[%emt 0:02:36]} 16. Be2 {[%emt 0:05:06]} a6 {[%emt 0:09:39]} 17. Na3 {[%emt 0:06:15]} Nd7 {[%emt 0:09:57]} 18. Rb1 {[%emt 0:00:34]} Bf5 {[%emt 0:02:09]} 19. Bd3 {[%emt 0:00:51]} Bxd3 {[%emt 0:00:21]} 20. Qxd3 {[%emt 0:00:13]} Ne5 {[%emt 0:00:18]} 21. Qe2 {[%emt 0:01:15]} Nc6 {[%emt 0:05:37]} 22. b3 {[%emt 0:01:04]} Nb4 {[%emt 0:02:38]} 23. e4 {[%emt 0:03:30]} Qb7 {[%emt 0:01:46]} 24. f3 {[%emt 0:06:20]} Bd4+ {[%emt 0:00:49]} 25. Kh1 {[%emt 0:00:12]} Qd7 {[%emt 0:01:56]} 26. Be3 {[%emt 0:00:45]} Bxe3 {[%emt 0:00:58]} 27. Qxe3 {[%emt 0:00:08]} Nxa2 {[%emt 0:00:33]} 28. Rb2 {[%emt 0:00:44]} Nb4 {[%emt 0:00:11]} 29. Rd1 {[%emt 0:00:17]} Qe6 {[%emt 0:00:35]} 30. Qd2 {[%emt 0:01:07]} Kg7 {[%emt 0:02:46]} 31. Nc2 {[%emt 0:00:49]} a5 {[%emt 0:03:14]} 32. Ra1 {[%emt 0:01:03]} Ra8 {[%emt 0:00:14]} 33. Ra4 {[%emt 0:01:08]} Qe5 {[%emt 0:02:11]} 34. Nxb4 {[%emt 0:01:38]} axb4 {[%emt 0:01:38]} 35. Rba2 {[%emt 0:10:12]} Rxa4 {[%emt 0:00:32]} 36. Rxa4 {[%emt 0:00:11]} Qc3 {[%emt 0:00:39]} 37. Qxc3+ 0-1

[Event "WSTCC-50 2024"]
[Site "Krakow"]
[Date "2024.07.03"]
[Round "2.17"]
[White "Schuster, Karsten"]
[Black "Osiecki, Stanislaw"]
[Result "1-0"]
[ECO "E73"]
[WhiteElo "2307"]
[BlackElo "1986"]
[Annotator "RC"]
[PlyCount "67"]
[EventDate "2024.07.01"]
[EventType "team-tourn"]
[EventCountry "POL"]
[SourceTitle "playchess.com"]
[Source "ChessBase"]
[SourceQuality "1"]
[TimeControl "40/5400+30:1800+30"]

1. d4 {[%emt 0:00:02]} Nf6 {[%emt 0:00:09]} 2. c4 {[%emt 0:00:05]} d6 {[%emt 0:00:10]} 3. Nc3 {[%emt 0:00:06]} g6 {[%emt 0:00:06]} 4. e4 {[%emt 0:00:05]} Bg7 {[%emt 0:00:05]} 5. Be2 {[%emt 0:00:05]} O-O {[%emt 0:00:12]} 6. Bg5 {[%emt 0:00:05]} c5 {[%emt 0:00:08]} 7. d5 {[%emt 0:00:05]} e6 {[%emt 0:00:27]} 8. Qd2 {[%emt 0:00:41]} exd5 {[%emt 0:00:21]} 9. exd5 {[%emt 0:00:07]} Na6 {[%emt 0:01:54]} 10. Nf3 {[%emt 0:03:08]} Nc7 {[%emt 0:01:28]} 11. a4 {[%emt 0:01:56]} Bd7 {[%emt 0:02:20]} 12. O-O {[%emt 0:03:36]} Bf5 {[%emt 0:14:18]} 13. Nh4 {[%emt 0:06:39]} Bd7 {[%emt 0:04:30]} 14. Ra3 {[%emt 0:13:24]} Re8 {[%emt 0:05:23]} 15. Bd3 {[%emt 0:09:36]} Qe7 {[%emt 0:01:36]} 16. Nf3 {[%emt 0:05:34]} Bg4 {[%emt 0:01:43]} 17. Qf4 {[%emt 0:02:20]} Bxf3 {[%emt 0:02:11]} 18. Qxf3 {[%emt 0:00:44]} h6 {[%emt 0:01:27]} 19. Bh4 {[%emt 0:08:13]} g5 {[%emt 0:07:26]} 20. Bg3 {[%emt 0:00:35]} Nd7 {[%emt 0:01:15]} 21. Qf5 {[%emt 0:08:54]} Ne5 {[%emt 0:01:08]} 22. Be2 {[%emt 0:01:25]} Ng6 {[%emt 0:08:38]} 23. Bh5 {[%emt 0:04:17]} Kh7 {[%emt 0:00:30]} 24. Nd1 {[%emt 0:06:00]} Rad8 {[%emt 0:02:38]} 25. f4 {[%emt 0:03:30]} Bd4+ {[%emt 0:02:05]} 26. Kh1 {[%emt 0:00:15]} Rf8 {[%emt 0:01:22]} 27. Raf3 {[%emt 0:02:28]} Kg7 {[%emt 0:02:37]} 28. fxg5 {[%emt 0:00:59]} Qxg5 {[%emt 0:00:06]} 29. Bxg6 {[%emt 0:02:54]} Qxg6 {[%emt 0:02:01]} 30. Qh3 {[%emt 0:01:35]} f6 {[%emt 0:04:20]} 31. Bxd6 {[%emt 0:00:43]} Rxd6 {[%emt 0:02:32]} 32. Rg3 {[%emt 0:00:04]} f5 {[%emt 0:02:27]} 33. Rxg6+ {[%emt 0:00:36]} Rxg6 {[%emt 0:00:04]} 34. Ne3 {[%emt 0:00:21]} 1-0

[Event "WSTCC-50 2024"]
[Site "Krakow"]
[Date "2024.07.03"]
[Round "2.17"]
[White "Homer, Stephen J"]
[Black "Delaney, John"]
[Result "0-1"]
[ECO "B30"]
[WhiteElo "2019"]
[BlackElo "2167"]
[Annotator "RC"]
[PlyCount "90"]
[EventDate "2024.07.01"]
[EventType "team-tourn"]
[EventCountry "POL"]
[SourceTitle "playchess.com"]
[Source "ChessBase"]
[SourceQuality "1"]
[TimeControl "40/5400+30:1800+30"]

1. e4 {[%emt 0:00:02]} c5 {[%emt 0:00:21]} 2. Nf3 {[%emt 0:00:01]} Nc6 {[%emt 0:00:22]} 3. Bb5 {[%emt 0:00:02]} e6 {[%emt 0:00:44]} 4. O-O {[%emt 0:00:07]} Nge7 {[%emt 0:05:29]} 5. b3 {[%emt 0:00:38]} a6 {[%emt 0:04:37]} 6. Bxc6 {[%emt 0:00:24]} Nxc6 {[%emt 0:00:24]} 7. Bb2 {[%emt 0:00:28]} b5 {[%emt 0:08:42]} 8. c4 {[%emt 0:00:30]} bxc4 {[%emt 0:07:03]} 9. bxc4 {[%emt 0:00:02]} Rb8 {[%emt 0:00:40]} 10. Bc3 {[%emt 0:00:02]} Qc7 {[%emt 0:03:04]} 11. Na3 {[%emt 0:03:41]} f6 {[%emt 0:00:38]} 12. Nh4 {[%emt 0:20:01]} d6 {[%emt 0:00:33]} 13. f4 {[%emt 0:00:25]} e5 {[%emt 0:10:35]} 14. f5 {[%emt 0:04:50]} Nb4 {[%emt 0:09:27]} 15. Qh5+ {[%emt 0:11:42]} Qf7 {[%emt 0:00:28]} 16. Ng6 {[%emt 0:00:37]} Bb7 {[%emt 0:01:00]} 17. Rae1 {[%emt 0:07:17]} Nxa2 {[%emt 0:01:14]} 18. Qh3 {[%emt 0:02:46]} hxg6 {[%emt 0:09:15]} 19. Qxh8 {[%emt 0:00:05]} Nxc3 {[%emt 0:00:12]} 20. dxc3 {[%emt 0:00:07]} Kd7 {[%emt 0:02:57]} 21. Rb1 {[%emt 0:08:12]} Kc7 {[%emt 0:01:45]} 22. Qh4 {[%emt 0:00:40]} Be7 {[%emt 0:03:28]} 23. Qe1 {[%emt 0:00:58]} gxf5 {[%emt 0:03:12]} 24. Rxf5 {[%emt 0:04:11]} Qg6 {[%emt 0:04:05]} 25. Qe2 {[%emt 0:01:04]} Qh6 {[%emt 0:04:58]} 26. Rf3 {[%emt 0:03:31]} Qh4 {[%emt 0:02:14]} 27. Re1 {[%emt 0:03:02]} Bc8 {[%emt 0:04:33]} 28. Qf2 {[%emt 0:03:16]} Qh5 {[%emt 0:02:51]} 29. Rb1 {[%emt 0:01:11]} Bb7 {[%emt 0:00:53]} 30. Qb2 {[%emt 0:00:37]} Qe8 {[%emt 0:01:58]} 31. Qb6+ {[%emt 0:01:12]} Kc8 {[%emt 0:00:58]} 32. Rh3 {[%emt 0:04:58]} Qf8 {[%emt 0:01:09]} 33. Qb3 {[%emt 0:11:40]} Kc7 {[%emt 0:00:31]} 34. Qb6+ {[%emt 0:04:03]} Kc8 {[%emt 0:00:07]} 35. Rd3 {[%emt 0:01:56]} Bd8 {[%emt 0:00:42]} 36. Qxd6 {[%emt 0:00:11]} Qxd6 {[%emt 0:00:06]} 37. Rxd6 {[%emt 0:00:04]} Bc7 {[%emt 0:00:06]} 38. Rd2 {[%emt 0:00:38]} Ba5 {[%emt 0:00:47]} 39. Rdb2 {[%emt 0:00:51]} Bxc3 {[%emt 0:00:28]} 40. Rb3 {[%emt 0:00:23]} Bb4 {[%emt 0:01:24]} 41. Rd1 {[%emt 0:30:43]} Bxe4 {[%emt 0:30:37]} 42. Rd6 {[%emt 0:00:27]} a5 {[%emt 0:01:12]} 43. Nb5 {[%emt 0:00:36]} Rxb5 {[%emt 0:00:14]} 44. cxb5 {[%emt 0:00:03]} c4 {[%emt 0:00:10]} 45. Rh3 {[%emt 0:00:44]} Bxd6 {[%emt 0:00:14]} 0-1